Cogmind - Beta 12 @@@ ROGUE MODE // 2023.03.26 @ 16:21:40 Player: ILikeVoltron Result: Self-destructed Performance ------------- Evolutions (2) 1000 Regions Visited (5) 1000 Robots Destroyed (3) 15 Value Destroyed (115) 115 Prototype IDs (23) 460 Alien Tech Used (0) 0 Bonus (300) 300 TOTAL SCORE: 2890 Bonus ------- Aligned with FarCom 300 Cogmind --------- Core Integrity 492/550 Matter 224/300 Energy 16/100 System Corruption 0% Temperature Cool (0) Movement Flying (272) Ox3 Location -8/Materials Parts ------- > --- POWER (1) -------- (None) > --- PROPULSION (4) --- VTOL Module VTOL Module > --- UTILITY (3) ------ Cooling System Large Storage Unit Skeleton Box > --- WEAPON (3) ------- Shock Rifle Light Assault Rifle Light Cannon > --- INVENTORY (15) --- Ion Engine Improved Aluminum Leg Improved Aluminum Leg Improved Aluminum Leg Peak State ------------ > --- POWER ------------ Light Nuclear Core > --- PROPULSION ------- VTOL Module VTOL Module VTOL Module VTOL Module > --- UTILITY ---------- Cooling System Large Storage Unit Skeleton Box > --- WEAPON ----------- Light Assault Rifle Light Cannon Grenade Launcher > --- INVENTORY -------- Ion Engine Improved Aluminum Leg Improved Aluminum Leg Improved Aluminum Leg Shock Rifle Light Cannon [Rating: 24] Favorites ----------- Power Ion Engine Engine Ion Engine Power Core Light Nuclear Core Propulsion VTOL Module Leg Aluminum Leg Flight Unit VTOL Module Utility Skeleton Box Device Skeleton Box Storage Small Storage Unit Processor Machine Analyzer Weapon Light Assault Rifle Energy Gun Medium Laser Ballistic Gun Light Assault Rifle Ballistic Cannon Light Cannon Launcher Grenade Launcher Build | -11 -10 -10 -10 -9 -8 ------- Run | Jun Mat Min Exi Min Mat Slots Evolved 4 | . . . . . 4 Power . | . . . . . . Propulsion 2 | . . . . . 2 Utility 1 | . . . . . 1 Weapon 1 | . . . . . 1 Parts Attached 14 | . 5 . 2 . 7 Power 1 | . . . . . 1 Engine . | . . . . . . Core 1 | . . . . . 1 Reactor . | . . . . . . Propulsion 4 | . 2 . . . 2 Treads . | . . . . . . Leg . | . . . . . . Wheel . | . . . . . . Hover . | . . . . . . Flight 4 | . 2 . . . 2 Utility 5 | . 2 . 2 . 1 Device 3 | . 1 . 1 . 1 Storage 1 | . . . 1 . . Processor 1 | . 1 . . . . Hackware . | . . . . . . Protection . | . . . . . . Artifact . | . . . . . . Weapon 4 | . 1 . . . 3 Energy Gun 1 | . . . . . 1 Energy Cannon . | . . . . . . Ballistic Gun . | . . . . . . Ballistic Cannon 2 | . 1 . . . 1 Launcher 1 | . . . . . 1 Special Weapon . | . . . . . . Impact Weapon . | . . . . . . Slashing Weapon . | . . . . . . Piercing Weapon . | . . . . . . Special Melee Weapon . | . . . . . . Unidentified Prototypes 2 | . . . 2 . . Parts Lost 5 | . . . . . 5 Power 1 | . . . . . 1 Propulsion 2 | . . . . . 2 Utility . | . . . . . . Weapon 2 | . . . . . 2 Highest Loss Streak 5 | . . . . . 5 To Critical Strikes . | . . . . . . Average Slot Usage (%) 97 | . 94 100 100 100 91 Engine 11 | . 14 14 14 14 1 Core 1 | . . . . . 6 Leg 1 | . 8 . . . . Flight 26 | . 19 28 28 28 30 Device 10 | . 3 . 9 14 18 Storage 13 | . 14 14 14 14 9 Processor 3 | . 5 14 4 . . Energy Gun 1 | . 9 . . . . Ballistic Gun 13 | . 14 14 14 14 9 Ballistic Cannon 11 | . 4 14 14 14 9 Launcher 1 | . . . . . 6 Naked Turns . | . . . . . . Heaviest Build 36 | 13 15 14 31 31 36 Greatest Support 20 | 20 20 8 8 8 16 Greatest Overweight (x) 3 | . 3 1 3 3 3 Average Overweight (x) 1 | . . 1 1 3 2 Largest Inventory Capacity 15 | 8 8 8 15 15 15 Average Capacity 11 | 8 8 8 9 15 15 Most Carried 8 | 6 8 8 8 8 7 Average Carried 7 | 6 7 8 8 8 5 Final Capacity 15 | 8 8 8 15 15 15 Final Carried 8 | 6 8 8 8 8 4 Class Distribution -------------------- 90% | Mutant 9% | Skirmisher Dominant Class ---------------- Mutant | -10/Materials Mutant | -10/Mines Mutant | -10/Exiles Mutant | -9/Mines Skirmisher | -8/Materials Resources | -11 -10 -10 -10 -9 -8 ----------- Run | Jun Mat Min Exi Min Mat Matter Collected 336 | 200 . 10 . . 126 Remotely . | . . . . . . Salvage Created 98 | . 34 . . . 64 Parts 3 | . 2 . . . 1 Haulers Intercepted . | . . . . . . Recyclers Shooed 1 | . . . . . 1 Parts Field Recycled . | . . . . . . Retrieved Matter . | . . . . . . Parts Self-Destructed . | . . . . . . Prevented . | . . . . . . Kills | -11 -10 -10 -10 -9 -8 ------- Run | Jun Mat Min Exi Min Mat Combat Hostiles Destroyed 2 | . . . . . 2 Guns 1 | . . . . . 1 Cannons 1 | . . . . . 1 Classes Destroyed 3 | . 1 . . . 2 Mechanic 1 | . 1 . . . . Grunt 1 | . . . . . 1 Hunter 1 | . . . . . 1 Best Kill Streak 1 | . 1 . . . 1 Combat Bots Only 1 | . . . . . 1 Max Kills in Single Turn 1 | . 1 . . . 1 Gunslinging . | . . . . . . Exploded . | . . . . . . Melee . | . . . . . . Uniques/NPCs Destroyed . | . . . . . . Combat | -11 -10 -10 -10 -9 -8 -------- Run | Jun Mat Min Exi Min Mat Damage Taken 622 | . 10 . . . 612 Core 58 | . . . . . 58 Absorbed by Shields . | . . . . . . Core Remaining (%) 100 | 100 . . . 100 . Volleys Fired 19 | . 2 . . . 17 Largest 3 | . 2 . . . 3 Hottest 105 | . 70 . . . 105 Shots Fired 40 | . 4 . . . 36 Gun 23 | . 4 . . . 19 Cannon 17 | . . . . . 17 Launcher . | . . . . . . Special . | . . . . . . Kinetic 36 | . 2 . . . 34 Thermal 2 | . 2 . . . . Explosive . | . . . . . . Electromagnetic 2 | . . . . . 2 Robot Hit Streak 7 | . 1 . . . 7 Robot Miss Streak 3 | . 1 . . . 3 Penetration Max . | . . . . . . Secondary Targets . | . . . . . . Shots Hit Robots 25 | . 1 . . . 24 Core Hits 12 | . 2 . . . 10 Critical Kills . | . . . . . . Critical Parts Destroyed 1 | . . . . . 1 Critical Strikes 1 | . . . . . 1 Destroy 1 | . . . . . 1 Melee Attacks . | . . . . . . Impact . | . . . . . . Slashing . | . . . . . . Piercing . | . . . . . . Sneak Attacks . | . . . . . . Combat Hostiles . | . . . . . . Follow-up Attacks . | . . . . . . Damage Inflicted 360 | . 32 . . . 328 Guns 131 | . 32 . . . 99 Cannons 229 | . . . . . 229 Explosions . | . . . . . . Melee . | . . . . . . Ramming . | . . . . . . Kinetic 320 | . 7 . . . 313 Thermal 25 | . 25 . . . . Explosive . | . . . . . . Electromagnetic 15 | . . . . . 15 Impact . | . . . . . . Slashing . | . . . . . . Piercing . | . . . . . . Highest Corruption . | . . . . . . Average Corruption . | . . . . . . Corruption Purged . | . . . . . . Corruption Blocked . | . . . . . . Overload Shots . | . . . . . . Overflow Damage . | . . . . . . Projectiles . | . . . . . . Explosions . | . . . . . . Melee . | . . . . . . Knockbacks 1 | . . . . . 1 Impact . | . . . . . . Kinetic 1 | . . . . . 1 Secondary . | . . . . . . Self-Inflicted Damage . | . . . . . . Shots . | . . . . . . Rammed . | . . . . . . Targets Rammed . | . . . . . . Kicked . | . . . . . . Crushed . | . . . . . . Highest Temperature 12 | . . . . . 12 Average Temperature 6 | . . . . . 6 Received Heat Transfer 204 | . 6 . . . 198 Siege Activations . | . . . . . . Robots Corrupted . | . . . . . . Combat Hostiles . | . . . . . . Parts Fried . | . . . . . . Impact Corruptions . | . . . . . . Robots Melted . | . . . . . . Combat Hostiles . | . . . . . . Parts Melted . | . . . . . . Heat Transferred 74 | . 74 . . . . Parts Sabotaged . | . . . . . . Parts Stolen . | . . . . . . Parts Stripped . | . . . . . . Power Chain Reactions . | . . . . . . Missiles Intercepted . | . . . . . . Alert | -11 -10 -10 -10 -9 -8 ------- Run | Jun Mat Min Exi Min Mat Peak Influence 86 | . 20 7 . . 86 Initial 7 | . . 7 . . . Average 6 | . 3 7 . . 16 Maximum Alert Level . | . . . . . . Low Security (%) 100 | 100 100 100 . 100 100 Level 1 . | . . . . . . Level 2 . | . . . . . . Level 3 . | . . . . . . Level 4 . | . . . . . . Level 5 . | . . . . . . High Security . | . . . . . . Max Security . | . . . . . . Squads Dispatched 4 | . 3 . . . 1 Investigation . | . . . . . . Extermination . | . . . . . . Reinforcement 4 | . 3 . . . 1 Assault . | . . . . . . Garrison . | . . . . . . Intercept . | . . . . . . Searches Triggered . | . . . . . . Construction Impeded . | . . . . . . Haulers Reinforced . | . . . . . . Active Scanning Responses . | . . . . . . Cargo Convoy Interrupts . | . . . . . . Stealth | -11 -10 -10 -10 -9 -8 --------- Run | Jun Mat Min Exi Min Mat Distress Signals . | . . . . . . Communications Jammed . | . . . . . . Distress Signals . | . . . . . . Times Spotted 15 | . 5 . . . 10 Peak Tracking Total 4 | . 3 . . . 4 Tactical Retreats 2 | . . . . . 2 Traps | -11 -10 -10 -10 -9 -8 ------- Run | Jun Mat Min Exi Min Mat Traps Triggered . | . . . . . . Indirectly . | . . . . . . Trap Hack Attempts . | . . . . . . Triggered . | . . . . . . Disarmed . | . . . . . . Reprogrammed . | . . . . . . Reused . | . . . . . . Traps Extracted . | . . . . . . Installed . | . . . . . . Triggered . | . . . . . . Machines | -11 -10 -10 -10 -9 -8 ---------- Run | Jun Mat Min Exi Min Mat Machines Disabled . | . . . . . . Max in Single Turn . | . . . . . . Machines Repaired . | . . . . . . Machines Sabotaged . | . . . . . . Overloaded Fab Kills . | . . . . . . Hacking | -11 -10 -10 -10 -9 -8 --------- Run | Jun Mat Min Exi Min Mat Machines Accessed 5 | . 2 . 3 . . Terminals 2 | . 2 . . . . Fabricators . | . . . . . . Repair Stations . | . . . . . . Recycling Units . | . . . . . . Scanalyzers . | . . . . . . Garrison Access . | . . . . . . Total Hacks 20 | . 2 . 18 . . Successful 19 | . 1 . 18 . . Failed 1 | . 1 . . . . Catastrophic 1 | . 1 . . . . Database Lockouts . | . . . . . . Manual 1 | . . . 1 . . Terminals 2 | . 2 . . . . Fabricators . | . . . . . . Repair Stations . | . . . . . . Recycling Units . | . . . . . . Scanalyzers . | . . . . . . Garrison Access . | . . . . . . Terminal Hacks 19 | . 1 . 18 . . Record 17 | . . . 17 . . Emergency Access Points 1 | . 1 . . . . EX-Prototype ID Bank 1 | . . . 1 . . Fabricator Hacks . | . . . . . . Repair Station Hacks . | . . . . . . Recycling Unit Hacks . | . . . . . . Scanalyzer . | . . . . . . Garrison Access Hacks . | . . . . . . Unauthorized Hacks . | . . . . . . Terminals . | . . . . . . Fabricators . | . . . . . . Repair Stations . | . . . . . . Recycling Units . | . . . . . . Scanalyzers . | . . . . . . Garrison Access . | . . . . . . Data Cores Recovered . | . . . . . . Used . | . . . . . . Hacking Detections . | . . . . . . Full Trace Events . | . . . . . . Feedback Events . | . . . . . . Feedback Blocked . | . . . . . . Robot Schematics Acquired . | . . . . . . Robots Built . | . . . . . . Authchips . | . . . . . . Time . | . . . . . . Total Robot Build Rating . | . . . . . . Part Schematics Acquired . | . . . . . . Parts Built . | . . . . . . Authchips . | . . . . . . Time . | . . . . . . Total Part Build Rating . | . . . . . . Parts Repaired . | . . . . . . Time . | . . . . . . Parts Recycled . | . . . . . . Recycled Matter . | . . . . . . Retrieved Matter . | . . . . . . Retrieved Components . | . . . . . . Parts Scanalyzed . | . . . . . . Part Schematics Acquired . | . . . . . . Parts Damaged . | . . . . . . Bothacking | -11 -10 -10 -10 -9 -8 ------------ Run | Jun Mat Min Exi Min Mat Used RIF Installer . | . . . . . . Robots Hacked . | . . . . . . Non-combat . | . . . . . . Combat . | . . . . . . Robot Hacks Applied . | . . . . . . Relay Couplers Released . | . . . . . . Fabnet Peak Effective % . | . . . . . . Robots Rewired . | . . . . . . Allies Hacked . | . . . . . . Hacks Repelled . | . . . . . . Allies | -11 -10 -10 -10 -9 -8 -------- Run | Jun Mat Min Exi Min Mat Total Allies . | . . . . . . Largest Group . | . . . . . . Highest-Rated Group . | . . . . . . Highest-Rated Ally . | . . . . . . Total Orders . | . . . . . . Ally Attacks . | . . . . . . Total Damage . | . . . . . . Kills . | . . . . . . Allies Corrupted . | . . . . . . Allies Melted . | . . . . . . Intel | -11 -10 -10 -10 -9 -8 ------- Run | Jun Mat Min Exi Min Mat Robot Analysis Total . | . . . . . . Derelict Logs Recovered 1 | . . . . 1 . Drone Launches . | . . . . . . Drone Recoveries . | . . . . . . Exploration | -11 -10 -10 -10 -9 -8 ------------- Run | Jun Mat Min Exi Min Mat Turns Passed 902 | 2 164 34 344 204 154 Spaces Moved 521 | 2 121 31 241 76 50 Core . | . . . . . . Treads . | . . . . . . Legs 41 | 2 39 . . . . Wheels . | . . . . . . Hover . | . . . . . . Flight 480 | . 82 31 241 76 50 Fastest Speed 112 | 120 112 112 112 272 186 Average Speed 152 | 120 115 112 130 272 188 Slowest Speed 275 | 120 275 112 272 272 272 Overloaded Moves . | . . . . . . Propulsion Burnouts . | . . . . . . Robots Hopped . | . . . . . . Cave-ins Triggered . | . . . . . . Time Travels 1 | . . . 1 . . Exploration Rate (%) 23 | 2 25 11 60 30 11 Regions Visited 5 Branch Regions 3 Pre-discovered Areas . | . . . . . . Known Exits Taken . | . . . . . . Unknown Exits Taken 5 | 1 1 1 1 1 . Scrap Searched 1 | . . 1 . . . Spaces Dug . | . . . . . . Terrain Destroyed . | . . . . . . Melee . | . . . . . . Projectile . | . . . . . . AOE . | . . . . . . Terrain Rammed . | . . . . . . Walls Destroyed . | . . . . . . Machines Disabled . | . . . . . . Actions | -11 -10 -10 -10 -9 -8 --------- Run | Jun Mat Min Exi Min Mat Total 601 | 1 145 30 272 75 78 Wait 30 | . . . 28 . 2 Move 516 | 1 120 30 240 75 50 Hop . | . . . . . . Pick Up 8 | . 7 . . . 1 Fast Attach 7 | . 5 . 1 . 1 Attach 6 | . . . . . 6 Detach 4 | . 2 . 1 . 1 Swap 1 | . . . 1 . . Drop 10 | . 9 . 1 . . Fire 19 | . 2 . . . 17 Melee . | . . . . . . Ram . | . . . . . . Kick . | . . . . . . Crush . | . . . . . . Escape Stasis . | . . . . . . Rewire . | . . . . . . Trap . | . . . . . . Miscellaneous . | . . . . . . Route ------- -11/Junkyard -10/Materials -10/Mines -10/Exiles -9/Mines (discovered 2 exits: [*Mat x2]) -8/Materials History --------- Turn | Location | Event 1 | -11/Junkyard | Discovered new exit (range 1) 3 | -11/Junkyard | Entered Materials 157 | -10/Materials | Discovered new exit (range 9) 167 | -10/Materials | Entered Mines 195 | -10/Mines | Deemed a non-threat by the Exiles lab entrance 197 | -10/Mines | Discovered new exit (range 5) 201 | -10/Mines | Entered Exiles 228 | -10/Exiles | Met 8R-AWN 247 | -10/Exiles | Met EX-HEX 279 | -10/Exiles | Met EX-BIN 291 | -10/Exiles | Aligned with FarCom system 292 | -10/Exiles | Given EX-Vault access code 307 | -10/Exiles | Build established: Mutant 319 | -10/Exiles | Opened EX-Vault 324 | -10/Exiles | Found Prototype Device 324 | -10/Exiles | Identified Chronowheel 324 | -10/Exiles | Activated Chronowheel 324 | -10/Exiles | Spacetime reconverged on an earlier point 326 | -10/Exiles | Found Prototype Device 326 | -10/Exiles | Identified Skeleton Box 395 | -10/Exiles | Exiles lab attacked by MAIN.C 523 | -10/Exiles | Discovered new exit (range 10) 545 | -10/Exiles | Left Exiles lab with Skeleton Box 545 | -10/Exiles | Entered Mines 690 | -9/Mines | Discovered new exit (range 14) 722 | -9/Mines | Learned Materials trap positions 730 | -9/Mines | Discovered new exit (range 6) 749 | -9/Mines | Entered Materials 749 | -8/Materials | Evolved 4 slots: Propulsion x2, Utility x1, Weapon x1 750 | -8/Materials | Loaded intel: 14 trap records 903 | -8/Materials | Self-destructed Last Messages --------------- 00874_ Penetrated by Slug. 00877_ H-55 Commando knocked back. 00880_ Acquired 2 matter. 00880_ Slug penetrates K-01 Serf. 00881_ K-01 Serf collects debris. 00883_ Penetrated by Slug. 00883_ K-01 Serf destroyed. 00884_ R-06 Scavenger collects Wheel. 00886_ Penetrated by Slug. 00888_ R-06 Scavenger collects Lgt. Ion Engine. 00889_ Slug penetrates Door. 00889_ H-55 Commando destroyed. 00891_ R-06 Scavenger collects Sml. Matter Pod. 00891_ Lgt. Cannon destroyed. 00892_ Lgt. Nuclear Core destroyed. 00892_ M-13 Machinist repairs R-06 Scavenger. 00897_ U-05 Engineer builds a Door. 00898_ VTOL Module destroyed. 00900_ Acquired 1 matter. 00901_ S-10 Pest IFF system glitched. Map ----- +----------------------------------------------------+ | ???????????????????????????# # #??????????? | | ???????????????????????????####+### #??????????? | | ???????????? ?????????????????# #? #?????????? | | ???????????? #???????????????# #? #?????????? | | ????????????? ^ ???#####+####?# #? #?????????? | | ????????????^^^ ??+ #?# ## #?????????? | | ???????????????" ?# #?# ## #?????????? | | ???????????????? ! # ###+### ##?????????? | | ????????????????? # # # #??????????? | | ??????????T ""??? + % # # #??????????? | | ??????????# ^"""???# # " # #??????????? | | ??????????# ^ ??# # """ # #??????????? | | ??????????# ?# % # """ + #??????????? | | ??????????#! # % # """ # #??????????? | | ??????????# #####+#### "" #??????????????? | | ??????????# #### #### """ #??????????????? | | ???????? + ] + "" +??????????????? | | ??????????# #### "" #??????????????? | | ??????????# u ##??# " #??????????????? | | ??????????##T### ##### #???# #??????????????? | | ???????????????# ?????#r#???#######??????????????? | | ??????????????????#####m###??????????????????????? | | ??????????????????# % #??????????????????????? | | ??????????????????# u #??????????????????????? | | ??????????????????# % u#??????????????????????? | | ??????????????????# "%@#??????????????????????? | | ??????????????????# """ss#??????????????????????? | | ??????????????????# """s ;??????????????????????? | | ?????????w????????# # ?????????????????????? | | ??????????????????# "" ###????????????????????? | | ??????????????????# "T #??????????????????????? | | ??????????????????# "" #??????????????????????? | | ??????????????????# #??????????????????????? | | ??????????????????#########??????????????????????? | | ?????????????????????????????????????????????????? | | ?????????????????????????????????????????????????? | | ????????????????Y????????????????????????????????? | | ?????????????????????????????????????????????????? | | ?????????????????????????????????????????????????? | | ?????????????????????????????????????????????????? | | ?????????????????????????????????????????????????? | | ?????????????????????????????????????????????????? | | ?????????????????????????????????????????????????? | | ?????????????????????????????????????????????????? | | ?????????????????????????????????????????????????? | | ?????????????????????????????????????????????????? | | ?????????????????????????????????????????????????? | | ?????????????????????????????????????????????????? | | ?????????????????????????????????????????????????? | | ?????????????????????????????????????????????????? | +----------------------------------------------------+ Best States ------------- Heat Dissipation 53 Energy Generation 14 Energy Capacity 250 Matter Stores 300 Matter Capacity 300 Sight Range 16 Terrain Scan Density 10 Evasion (%) 55 Item Schematics ----------------- None Robot Schematics ------------------ None Fabricated ------------ Nothing Alien Tech Used ----------------- None Achievements -------------- None Challenges ------------ None Game ------ Seed ControlSurveybotScrap Manual? 0 Play Time 00:13:10 Cumulative 91.2 hours Start 2023.03.26 @ 15:50:40 End 2023.03.26 @ 16:21:40 Sessions 1 Manual Loads 0 Difficulty Rogue Special Mode None Game No. 137 Rogue 133 Adventurer 0 Explorer 4 Win Type - Total 0 Types 0/0/0/0/0/0/0/0/0 Lore% 25 Gallery% 40 Achievement% 32 Wizard Run 0 Options --------- ASCII 0 Keyboard 1 Movement Arrows Keybinds 0 Fullscreen 0 Font 20/SmallcapsGlow Map View 113x50 Tactical HUD 1 Map Filters NONE Filters NONE Steam 1 RUN: 1c473276-086a-4ad6-83fc-e1c6d4149083